Cogmind - Beta 13 @@@ ROGUE MODE // 2024.03.30 @ 17:23:04 Player: MORONI274 Result: Destroyed by G-34 Mercenary with Small Laser Performance ------------- Evolutions (0) 0 Regions Visited (1) 200 Robots Destroyed (13) 65 Value Destroyed (363) 363 Prototype IDs (0) 0 Alien Tech Used (0) 0 Bonus (0) 0 TOTAL SCORE: 628 Bonus ------- None Cogmind --------- Core Integrity 0/250 Matter 378/450 Energy 98/250 System Corruption 1% Temperature Cool (6) Movement Core (550) Ox10 Location -10/Materials Parts ------- > --- POWER (1) -------- Ion Engine > --- PROPULSION (2) --- (None) > --- UTILITY (2) ------ Large Storage Unit Large Matter Pod > --- WEAPON (2) ------- Small Laser Light Cannon > --- INVENTORY (15) --- Ion Engine Aluminum Leg Aluminum Leg Aluminum Leg Heat Sink Heat Sink Small Matter Pod (50) Seismic Detector Mining Laser Welding Torch Peak State ------------ > --- POWER ------------ Light Ion Engine > --- PROPULSION ------- Wheel Wheel > --- UTILITY ---------- Large Storage Unit Large Matter Pod > --- WEAPON ----------- Small Laser Mining Laser > --- INVENTORY -------- Ion Engine Ion Engine Aluminum Leg Aluminum Leg Aluminum Leg Heat Sink Heat Sink Small Matter Pod Seismic Detector Welding Torch [Rating: 8] Favorites ----------- Power Light Ion Engine Engine Light Ion Engine Propulsion Wheel Leg Aluminum Leg Wheel Wheel Utility Large Storage Unit Device Heat Sink Storage Large Storage Unit Protection Light Armor Plating Weapon Light Assault Rifle Energy Gun Small Laser Ballistic Gun Light Assault Rifle Ballistic Cannon Light Cannon Special Weapon Mining Laser Build | -11 -10 ------- Run | Yrd Mat Slots Evolved . | . . Power . | . . Propulsion . | . . Utility . | . . Weapon . | . . Parts Attached 26 | 7 19 Power 4 | 1 3 Engine 4 | 1 3 Core . | . . Reactor . | . . Propulsion 9 | 2 7 Treads . | . . Leg 5 | . 5 Wheel 4 | 2 2 Hover . | . . Flight . | . . Utility 6 | 2 4 Device 1 | 1 . Storage 4 | 1 3 Processor . | . . Hackware . | . . Protection 1 | . 1 Artifact . | . . Weapon 7 | 2 5 Energy Gun 2 | 1 1 Energy Cannon . | . . Ballistic Gun 3 | 1 2 Ballistic Cannon 1 | . 1 Launcher . | . . Special Weapon 1 | . 1 Impact Weapon . | . . Slashing Weapon . | . . Piercing Weapon . | . . Special Melee Weapon . | . . Unidentified Prototypes . | . . Parts Lost 12 | . 12 Power 3 | . 3 Propulsion 5 | . 5 Utility 1 | . 1 Weapon 3 | . 3 Highest Loss Streak 5 | . 5 To Critical Strikes . | . . Average Slot Usage (%) 88 | . 88 Engine 12 | . 12 Leg 6 | . 6 Wheel 17 | . 17 Storage 21 | . 21 Protection 4 | . 4 Energy Gun 7 | . 7 Ballistic Gun 12 | . 12 Special Weapon 2 | . 2 Naked Turns . | . . Heaviest Build 29 | 7 29 Greatest Support 20 | 20 20 Greatest Overweight (x) 8 | . 8 Average Overweight (x) . | . 1 Largest Inventory Capacity 15 | 5 15 Average Capacity 13 | 5 14 Most Carried 12 | 5 12 Average Carried 7 | 1 7 Final Capacity 15 | 5 15 Final Carried 10 | 4 10 Class Distribution -------------------- 72% | Mutant 27% | Scavenger-Mutant Dominant Class ---------------- Mutant | -10/Materials Resources | -11 -10 ----------- Run | Yrd Mat Matter Collected 621 | 284 337 Remotely . | . . Salvage Created 484 | 65 419 Parts 22 | 5 17 Haulers Intercepted . | . . Recyclers Shooed . | . . Parts Field Recycled . | . . Retrieved Matter . | . . Parts Self-Destructed . | . . Prevented . | . . Kills | -11 -10 ------- Run | Yrd Mat Combat Hostiles Destroyed 12 | 1 11 Guns 12 | 1 11 Classes Destroyed 3 | 2 1 Worker 1 | 1 . Swarmer 3 | . 3 Grunt 9 | 1 8 Best Kill Streak 5 | 1 5 Combat Bots Only 5 | 1 5 Max Kills in Single Turn 1 | 1 1 Gunslinging . | . . Exploded . | . . Melee . | . . Uniques/NPCs Destroyed . | . . Combat | -11 -10 -------- Run | Yrd Mat Hostile Shots Fired 145 | 4 141 Missed 39 | . 39 Damage Taken 1156 | 45 1111 Core 259 | . 259 Absorbed by Shields . | . . Core Remaining (%) 100 | 100 . Volleys Fired 82 | 4 78 Largest 2 | 2 2 Hottest 60 | 60 60 Shots Fired 106 | 8 98 Gun 98 | 8 90 Cannon 8 | . 8 Launcher . | . . Special . | . . Kinetic 94 | 4 90 Thermal 12 | 4 8 Explosive . | . . Electromagnetic . | . . Robot Hit Streak 6 | 3 6 Robot Miss Streak 3 | 1 3 Penetration Max . | . . Secondary Targets . | . . Shots Hit Robots 66 | 6 60 Core Hits 29 | 4 25 Critical Kills 1 | . 1 Critical Parts Destroyed . | . . Critical Strikes 1 | . 1 Destroy 1 | . 1 Melee Attacks . | . . Impact . | . . Slashing . | . . Piercing . | . . Sneak Attacks . | . . Combat Hostiles . | . . Follow-up Attacks . | . . Damage Inflicted 703 | 62 641 Guns 558 | 62 496 Cannons 145 | . 145 Explosions . | . . Melee . | . . Ramming . | . . Kinetic 590 | 15 575 Thermal 113 | 47 66 Explosive . | . . Electromagnetic . | . . Impact . | . . Slashing . | . . Piercing . | . . Highest Corruption 1 | . 1 Average Corruption 1 | . 1 Corruption Purged . | . . Corruption Blocked . | . . Effects 5 | . 5 Matter Fused 1 | . 1 Heat Flow Errors 1 | . 1 Parts Rejected 1 | . 1 Data Loss (minor) 1 | . 1 Weapon Failures 1 | . 1 Overload Shots . | . . Overflow Damage . | . . Projectiles . | . . Explosions . | . . Melee . | . . Knockbacks 4 | . 4 Impact . | . . Kinetic 3 | . 3 Secondary 1 | . 1 Self-Inflicted Damage . | . . Shots . | . . Rammed . | . . Targets Rammed . | . . Kicked . | . . Crushed . | . . Highest Temperature 282 | 38 282 Average Temperature 57 | 21 60 Received Heat Transfer 576 | 24 552 Siege Activations . | . . Robots Corrupted . | . . Combat Hostiles . | . . Parts Fried . | . . Impact Corruptions . | . . Robots Melted . | . . Combat Hostiles . | . . Parts Melted . | . . Heat Transferred 250 | 100 150 Parts Sabotaged . | . . Parts Stolen . | . . Parts Stripped . | . . Power Chain Reactions . | . . Alert | -11 -10 ------- Run | Yrd Mat Peak Influence 292 | 25 292 Initial 16 | . 16 Average 117 | 5 136 Maximum Alert Level 1 | . 1 Low Security (%) 80 | 100 76 Level 1 19 | . 23 Level 2 . | . . Level 3 . | . . Level 4 . | . . Level 5 . | . . High Security . | . . Max Security . | . . Squads Dispatched 4 | . 4 Investigation 3 | . 3 Extermination . | . . Reinforcement 1 | . 1 Assault . | . . Garrison . | . . Intercept . | . . Searches Triggered . | . . Construction Impeded . | . . Haulers Reinforced . | . . Active Scanning Responses . | . . Cargo Convoy Interrupts . | . . Stealth | -11 -10 --------- Run | Yrd Mat Distress Signals 1 | . 1 Communications Jammed . | . . Distress Signals . | . . Times Spotted 26 | 1 25 Peak Tracking Total 5 | 1 5 Tactical Retreats 2 | . 2 Traps | -11 -10 ------- Run | Yrd Mat Traps Triggered 1 | . 1 Indirectly . | . . Trap Hack Attempts . | . . Triggered . | . . Disarmed . | . . Reprogrammed . | . . Reused . | . . Traps Extracted . | . . Installed . | . . Triggered . | . . Machines | -11 -10 ---------- Run | Yrd Mat Machines Disabled . | . . Max in Single Turn . | . . Machines Repaired . | . . Machines Dismantled . | . . Machines Sabotaged . | . . Overloaded Fab Kills . | . . Hacking | -11 -10 --------- Run | Yrd Mat Machines Accessed 4 | . 4 Terminals 3 | . 3 Fabricators . | . . Repair Stations . | . . Recycling Units 1 | . 1 Scanalyzers . | . . Garrison Access . | . . Total Hacks 14 | . 14 Successful 10 | . 10 Failed 4 | . 4 Catastrophic . | . . Database Lockouts . | . . Manual 2 | . 2 Terminals 9 | . 9 Fabricators . | . . Repair Stations . | . . Recycling Units 5 | . 5 Scanalyzers . | . . Garrison Access . | . . Terminal Hacks 6 | . 6 Record 1 | . 1 Alert Level 3 | . 3 Maintenance Status 2 | . 2 Fabricator Hacks . | . . Repair Station Hacks . | . . Recycling Unit Hacks 4 | . 4 Recycle Component 1 | . 1 Process 2 | . 2 Report Inventory 1 | . 1 Scanalyzer . | . . Garrison Access Hacks . | . . Unauthorized Hacks . | . . Terminals . | . . Fabricators . | . . Repair Stations . | . . Recycling Units . | . . Scanalyzers . | . . Garrison Access . | . . Data Cores Recovered . | . . Used . | . . Hacking Detections 4 | . 4 Full Trace Events 2 | . 2 Feedback Events 1 | . 1 Corruption 1 | . 1 Feedback Blocked . | . . Robot Schematics Acquired . | . . Robots Built . | . . Authchips . | . . Time . | . . Total Robot Build Rating . | . . Part Schematics Acquired . | . . Parts Built . | . . Authchips . | . . Time . | . . Total Part Build Rating . | . . Parts Repaired . | . . Time . | . . Parts Recycled 1 | . 1 Recycled Matter 262 | . 262 Retrieved Matter . | . . Retrieved Components . | . . Parts Scanalyzed . | . . Part Schematics Acquired . | . . Parts Damaged . | . . Bothacking | -11 -10 ------------ Run | Yrd Mat Used RIF Installer . | . . Robots Hacked . | . . Non-combat . | . . Combat . | . . Robot Hacks Applied . | . . Relay Couplers Released . | . . Fabnet Peak Effective % . | . . Robots Rewired . | . . Allies Hacked . | . . Hacks Repelled . | . . Allies | -11 -10 -------- Run | Yrd Mat Total Allies . | . . Largest Group . | . . Highest-Rated Group . | . . Highest-Rated Ally . | . . Total Orders . | . . Ally Attacks . | . . Total Damage . | . . Kills . | . . Allies Corrupted . | . . Allies Melted . | . . Intel | -11 -10 ------- Run | Yrd Mat Robot Analysis Total . | . . Derelict Logs Recovered . | . . Drone Launches . | . . Drone Recoveries . | . . Exploration | -11 -10 ------------- Run | Yrd Mat Turns Passed 762 | 109 653 Spaces Moved 494 | 110 384 Core 29 | 25 4 Treads . | . . Legs 63 | . 63 Wheels 402 | 85 317 Hover . | . . Flight . | . . Fastest Speed 50 | 50 80 Average Speed 105 | 73 114 Slowest Speed 450 | 80 450 Overloaded Moves . | . . Propulsion Burnouts . | . . Robots Hopped . | . . Cave-ins Triggered . | . . Exploration Rate (%) 28 | 8 49 Regions Visited 1 Branch Regions . Pre-discovered Areas . | . . Known Exits Taken . | . . Unknown Exits Taken 1 | 1 . Scrap Searched . | . . Spaces Dug . | . . Terrain Destroyed . | . . Melee . | . . Projectile . | . . AOE . | . . Terrain Rammed . | . . Walls Destroyed . | . . Machines Disabled . | . . Actions | -11 -10 --------- Run | Yrd Mat Total 643 | 131 512 Wait 13 | . 13 Move 493 | 109 384 Hop . | . . Pick Up 29 | 11 18 Fast Attach . | . . Attach 18 | 7 11 Detach . | . . Swap 8 | . 8 Drop . | . . Fire 82 | 4 78 Melee . | . . Ram . | . . Kick . | . . Crush . | . . Escape Stasis . | . . Rewire . | . . Trap . | . . Miscellaneous . | . . Route ------- -11/Scrapyard -10/Materials (discovered 1 exit: [*Min]) History --------- Turn | Location | Event 2 | -11/Scrapyard | Met Revision 17 79 | -11/Scrapyard | Discovered new exit (range 8) 110 | -11/Scrapyard | Entered Materials 302 | -10/Materials | Discovered new exit (range 10) 319 | -10/Materials | Build established: Mutant 436 | -10/Materials | Lost 5 parts (1p2n1u1w) 516 | -10/Materials | Core integrity fell below 50% 578 | -10/Materials | Core integrity fell below 20% 612 | -10/Materials | Lost 3 parts (1n2w) 763 | -10/Materials | Destroyed by G-34 Mercenary with Small Laser Last Messages --------------- to reduce weight for certain robot designs, especially those with strict weight restrictions such as hovering and flight-based models. 00712_ Acquired Welding Torch. 00720_ Triggered Alarm Trap. 00720_ An alarm sounds. 00720_ ALERT: Alarm triggered, dispatching investigation squad. 00730_ K-01 Serf collects debris. 00738_ Acquired Seismic Detector. 00739_ K-01 Serf collects debris. 00744_ Acquired Lgt. Cannon. 00747_ G-34 Mercenary knocked back. 00749_ Lgt. Ion Engine destroyed. 00751_ G-34 Mercenary knocked back. 00757_ K-01 Serf collects debris. 00757_ G-34 Mercenary knocked back. 00759_ Wheel destroyed. 00762_ K-01 Serf collects debris. Map ----- +----------------------------------------------------+ | ?????????????????????????????? | | ?????????????????????????????? | | ?????????????????????????????? | | ?????????????????????????????? | | ?????????????????????????????? | | ?????????????????????????????? | | ?????????????????????????????? | | ?????????????????????????????? | | ?????????????????????????????? | | ?????????????????????????????? | | ?????????????????????????????? | | ?????????????????????????????? | | ?? ????????????????????????? | | ?? #???????????????????????? | | ?" #??????????? ?????????? | | ?" #??????????# #????????? | | ? #??????????# ########## | | ? #??????????# # # | | "" #??????????# # # | | "" ###+######## # # | | "" # # | | + # | | # % # | | "" ? #% %k # | | "" ########????# # gg # | | "" # #????# #g%% @ !# | | # #????# ##+####### | | + "" #????# #?????? | | # T" ###### #?????? | | # "" + #?????? | | # #######+###+#?????? | | ########????? ?????????? | | "" #???????????? ?????????? | | Y" !#??????????? ????????? | | "" ##########?? ????????? | | # #?# ???????? | | # #?# ???????? | | # #?# ??????? | | # #?# ??????? | | % # #?#########?????? | | %# #???????????????? | | % + #???????????????? | | % # #???????????????? | | # #???????????????? | | #####+######?????????????? | | #?????????????? | | #?????????????? | | #?????????????? | | ## ########+#####????????????? | | #?# """ #????????????? | +----------------------------------------------------+ Best States ------------- Heat Dissipation 35 Energy Generation 10 Energy Capacity 250 Matter Stores 450 Matter Capacity 450 Sight Range 16 Terrain Scan Density 10 Armor Coverage 150 Evasion (%) 50 Item Schematics ----------------- None Robot Schematics ------------------ None Fabricated ------------ Nothing Alien Tech Used ----------------- None Achievements -------------- One Hack Too Far Challenges ------------ None Game ------ Seed CombatPulseChip Manual? 0 Play Time 00:14:25 Cumulative 0.7 hours Start 2024.03.30 @ 17:08:52 End 2024.03.30 @ 17:23:04 Sessions 1 Manual Loads 0 Difficulty Rogue Special Mode None Game No. 2 Rogue 2 Adventurer 0 Explorer 0 Win Type - Total 0 Types 0/0/0/0/0/0/0/0/0 Lore% 0 Gallery% 2 Achievement% 1 Wizard Run 0 Options --------- Layout 1 ASCII 0 Keyboard 0 Movement Arrows Keybinds 0 Fullscreen 0 Font 14/SmallcapsLarge Map View 50x40 Zoom Use 0% Tactical HUD 1 Map Filters NONE Filters NONE Steam SD RUN: 238373b8-efc1-4094-95af-ac35de4d0e1f